bitfinex/quotes_ETHUSD_20230110
["timestamp","ask_amount","ask_price","bid_price","bid_amount"]
[1673315998407,4.72e-06,1325.0,1324.9,27.93563645]
[1673315998679,9.57111055,1325.1,1324.9,38.32304604]
[1673315998877,9.57111055,1325.1,1325.0,1.87302681]
[1673315999193,9.57111055,1325.1,1325.0,24.51450681]
[1673315999194,1.70361055,1325.1,1325.0,24.51450681]
[1673315999357,1.68761055,1325.1,1325.0,28.43764041]
[1673315999560,3.99878126,1325.2,1325.0,31.24667999]
[1673315999774,3.93278126,1325.2,1325.0,29.37365318]
[1673316000240,1.68761055,1325.2,1325.0,28.2756136]
[1673316000878,12.82948126,1325.3,1325.0,29.40429319]
[1673316001068,12.77948126,1325.3,1325.0,32.21318686]
[1673316001251,12.77948126,1325.3,1325.2,15.09206]
[1673316001613,4.51488126,1325.3,1325.2,15.18306]
[1673316001776,4.49888126,1325.3,1325.2,15.18306]
[1673316002198,4.49888126,1325.3,1325.2,7.63703]
[1673316002721,4.49888126,1325.3,1325.2,15.18306]
[1673316003612,4.49888126,1325.3,1325.2,22.72909]
[1673316003819,3.93278126,1325.3,1325.2,25.756624]
[1673316004189,1.68761055,1325.3,1325.2,25.756624]
[1673316004842,1.68761055,1325.3,1325.2,18.210594]
[1673316005473,1.68761055,1325.3,1325.2,25.756624]
[1673316005474,0.52451576,1325.3,1325.2,25.756624]
[1673316007458,0.52451576,1325.3,1325.2,18.210594]
[1673316008416,0.52451576,1325.3,1325.2,25.756624]
[1673316009245,0.52451576,1325.3,1325.2,18.210594]
[1673316010756,0.52451576,1325.3,1325.2,25.756624]
[1673316017341,0.52451576,1325.3,1325.2,27.467624]
[1673316019372,0.52451576,1325.3,1325.2,27.46559785]
[1673316019683,0.52451576,1325.3,1325.2,27.46759785]
[1673316021377,0.52451576,1325.3,1325.2,0.09097385]
[1673316021378,15.61543576,1325.3,1325.2,0.09097385]
[1673316021528,0.54051576,1325.3,1325.1,4.698]
[1673316021738,8.06997576,1325.3,1325.1,4.698]
[1673316021964,0.54051576,1325.3,1325.1,4.698]
[1673316022176,0.52451576,1325.3,1325.1,4.698]
[1673316022814,0.52451576,1325.3,1325.1,19.79069]
[1673316023026,0.52451576,1325.3,1325.1,19.88166385]
[1673316023860,0.52451576,1325.3,1325.1,27.42826385]
[1673316024100,1.65299054,1325.3,1325.1,19.88166385]
[1673316024309,0.52451576,1325.3,1325.1,29.56874506]
[1673316024895,0.52451576,1325.3,1325.1,22.02214506]
[1673316025590,1.65299054,1325.3,1325.1,14.47565506]
[1673316025888,1.65299054,1325.3,1325.1,3.09097385]
[1673316026054,1.65299054,1325.3,1325.1,10.54644]
[1673316026265,1.65299054,1325.3,1325.1,10.63741385]
[1673316026893,1.65299054,1325.3,1325.1,18.18401385]
[1673316027577,1.65299054,1325.3,1325.1,25.73061385]
[1673316028830,1.65299054,1325.3,1325.1,18.18401385]
[1673316029143,1.65299054,1325.3,1325.1,25.73061385]
[1673316029335,1.65299054,1325.3,1325.1,31.55361794]
[1673316032266,3.34060109,1325.3,1325.1,31.55361794]
[1673316032715,0.52451576,1325.3,1325.1,34.36222526]
[1673316036257,1.65299054,1325.3,1325.1,34.36222526]
[1673316037743,1.65299054,1325.3,1325.1,26.81562526]
[1673316037980,1.65299054,1325.3,1325.1,19.26902526]
[1673316038192,3.34060109,1325.3,1325.1,11.72258526]
[1673316038406,1.12847478,1325.2,1325.1,11.72258526]
[1673316038721,1.12847478,1325.2,1325.1,13.59512307]
[1673316038879,3.34060109,1325.3,1325.1,13.59512307]
[1673316039141,3.34060109,1325.3,1325.1,11.72258526]
[1673316039349,0.45459088,1325.2,1325.1,26.81578526]
[1673316039559,0.45459088,1325.2,1325.1,28.6883165]
[1673316040093,1.58306566,1325.2,1325.1,13.5951165]
[1673316040351,1.58306566,1325.2,1325.1,10.78650918]
[1673316041055,1.58306566,1325.2,1325.1,21.1417165]
[1673316043134,1.58306566,1325.2,1325.1,28.6883165]
[1673316047600,3.27067621,1325.2,1325.1,0.08794679]
[1673316047814,21.27965159,1325.2,1325.0,0.08794679]
[1673316048033,2.26315564,1325.1,1324.8,30.11430906]
[1673316048174,1.13126396,1325.0,1324.9,9.42048516]
[1673316048391,1.13126396,1325.0,1324.9,7.63557679]
[1673316049243,1.13126396,1325.0,1324.9,15.18330679]
[1673316049457,2.8282196,1325.1,1324.9,17.05615601]
[1673316049698,2.8282196,1325.1,1324.9,15.18330679]
[1673316050174,1.13126396,1325.1,1324.9,22.73103679]
[1673316050591,1.13126396,1325.1,1324.9,25.54019953]
[1673316050860,1.18126396,1325.1,1324.9,25.54019953]
[1673316052415,0.05,1325.1,1324.9,25.54019953]
[1673316052823,5.57591048,1325.2,1324.9,25.54019953]
[1673316054003,5.57591048,1325.2,1324.9,26.66887912]
[1673316054410,3.87895484,1325.2,1324.9,26.66887912]
[1673316054623,3.86295484,1325.2,1324.9,26.66887912]
[1673316055166,3.86295484,1325.2,1325.0,1.87265146]
[1673316055375,3.86295484,1325.2,1325.0,7.54707]
[1673316055536,3.86295484,1325.2,1325.0,15.18217679]
[1673316056487,5.55991048,1325.2,1325.0,15.18217679]
[1673316056832,5.57591048,1325.2,1325.0,15.18217679]
[1673316057753,5.57591048,1325.2,1325.0,22.72933679]
[1673316057971,3.86491048,1325.2,1325.0,22.72933679]
[1673316058166,3.84891048,1325.2,1325.0,15.18217679]
[1673316059548,3.28281048,1325.2,1325.0,15.18217679]
[1673316062603,3.28281048,1325.2,1325.0,7.63501679]
[1673316063362,3.28281048,1325.2,1325.0,15.18217679]
[1673316064194,1.13126396,1325.1,1325.0,15.18217679]
[1673316065027,1.13326396,1325.1,1325.0,15.18017679]
[1673316065258,1.13126396,1325.1,1325.0,15.18217679]
[1673316068040,1.13126396,1325.1,1325.0,0.08794679]
[1673316068262,1.13126396,1325.1,1325.0,15.09432]
[1673316068477,1.13126396,1325.1,1325.0,7.63510679]
[1673316068984,1.13126396,1325.1,1325.0,22.72942679]
[1673316069195,1.13126396,1325.1,1325.0,15.18226679]
[1673316069737,1.13126396,1325.1,1325.0,7.63510679]
[1673316069994,1.13126396,1325.1,1325.0,0.08794679]
[1673316070213,1.13126396,1325.1,1324.9,22.64249]
[1673316070373,1.13126396,1325.1,1324.9,22.73043679]
[1673316070577,1.13126396,1325.1,1324.9,22.72827521]
[1673316070787,3.28281048,1325.2,1324.9,22.72827521]
[1673316071044,3.28281048,1325.2,1324.9,25.53746579]
[1673316071428,0.05,1325.0,1324.9,25.53746579]
[1673316071644,0.05,1325.0,1324.9,27.41021674]
[1673316072396,3.28281048,1325.2,1324.9,27.41021674]
[1673316072740,3.28281048,1325.2,1324.9,25.53746579]
[1673316073412,3.28281048,1325.2,1324.9,30.22749427]
[1673316076199,3.28281048,1325.2,1324.9,31.35617386]
[1673316076893,1.58585484,1325.2,1325.0,1.87270234]
[1673316077134,1.58585484,1325.2,1325.0,16.96651234]
[1673316077298,1.58585484,1325.2,1325.0,15.18175679]
[1673316078254,3.28281048,1325.2,1325.0,15.18175679]
[1673316080241,3.28281048,1325.2,1325.0,19.12466733]
[1673316080636,1.58585484,1325.2,1325.1,4.37255125]
[1673316080817,1.58585484,1325.2,1325.1,22.6398]
[1673316080982,1.58585484,1325.2,1325.1,22.72774679]
[1673316081197,1.58585484,1325.2,1325.1,26.43040758]
[1673316082888,1.58585484,1325.2,1325.1,28.30297135]
[1673316083120,0.45459088,1325.2,1325.1,28.30297135]
[1673316083335,0.45459088,1325.2,1325.1,31.11172749]
[1673316084790,1.58585484,1325.2,1325.1,3.79060758]
[1673316085000,1.58585484,1325.2,1325.0,0.08794679]
[1673316085220,3.28281048,1325.2,1325.0,7.54707]
[1673316085387,3.28281048,1325.2,1325.0,7.63501679]
[1673316085861,3.28281048,1325.2,1325.0,0.08794679]
[1673316085862,1.13126396,1325.1,1325.0,0.08794679]
[1673316086051,1.13126396,1325.1,1324.9,8.16004679]
[1673316086277,1.13126396,1325.1,1324.9,26.37876637]
[1673316086437,1.13326396,1325.1,1324.9,29.18570992]
[1673316086806,1.13126396,1325.1,1324.9,29.18770992]
[1673316088589,1.13126396,1325.1,1324.9,37.86411951]
[1673316089327,1.13126396,1325.1,1324.9,36.73543992]
[1673316089697,2.8282196,1325.1,1324.9,36.73543992]
[1673316090536,1.13126396,1325.0,1324.9,36.73543992]
[1673316090750,2.8282196,1325.1,1324.9,38.6082697]
[1673316090958,2.8282196,1325.1,1324.9,36.73543992]
[1673316091588,2.8282196,1325.1,1324.9,29.18770992]
[1673316092177,1.13126396,1325.0,1324.9,8.16004679]
[1673316092473,1.13126396,1325.0,1324.9,10.03291987]
[1673316092695,1.13126396,1325.0,1324.9,1.96081987]
[1673316093012,1.13126396,1325.0,1324.9,1.87287308]
[1673316093477,1.13126396,1325.0,1324.9,9.42060308]
[1673316093685,1.13126396,1325.0,1324.9,9.50854987]
[1673316093948,1.13126396,1325.0,1324.9,17.05627987]
[1673316094752,2.8282196,1325.1,1324.9,1.96081987]
[1673316095001,2.8282196,1325.1,1324.8,37.66647081]
[1673316095316,2.8282196,1325.1,1324.9,1.87283237]
[1673316095541,1.13126396,1325.0,1324.9,1.87283237]
[1673316095846,2.8282196,1325.1,1324.9,1.87283237]
[1673316098047,4.5222196,1325.1,1324.9,1.87283237]
[1673316098473,12.0689196,1325.1,1324.9,1.87283237]
[1673316098626,12.0849196,1325.1,1324.9,1.87283237]
[1673316100530,4.5382196,1325.1,1324.9,1.87283237]
[1673316100741,4.5222196,1325.1,1324.9,1.87283237]
[1673316100959,8.0222196,1325.1,1324.9,1.87079286]
[1673316101170,13.51703135,1325.0,1324.8,0.08794679]
[1673316101380,3.39187988,1324.9,1324.6,19.35126556]
[1673316101594,4.52173506,1324.9,1324.6,19.35126556]
[1673316101802,1.12985518,1324.8,1324.6,10.67357597]
[1673316102011,1.12985518,1324.8,1324.6,19.35160556]
[1673316102257,6.91390369,1324.9,1324.6,18.00243407]
[1673316102576,6.86390369,1324.9,1324.6,15.19276597]
[1673316103096,6.86390369,1324.9,1324.6,25.55187407]
[1673316104102,5.16902381,1324.9,1324.6,25.55187407]
[1673316104315,0.51201898,1324.8,1324.6,25.55187407]
[1673316106877,0.51401898,1324.8,1324.6,25.54987407]
[1673316107043,0.51201898,1324.8,1324.6,25.55187407]
[1673316110664,0.51201898,1324.8,1324.6,22.74220597]
[1673316113039,0.51201898,1324.8,1324.6,25.55185497]
[1673316113394,0.51201898,1324.8,1324.6,25.551854]
[1673316114147,0.51201898,1324.8,1324.6,22.74220597]
[1673316119635,7.20766064,1324.7,1324.6,0.09397597]
[1673316119848,32.34804029,1324.7,1324.6,0.00602918]
[1673316119999,41.59179017,1324.7,1324.6,0.00602918]
[1673316121633,39.09179017,1324.7,1324.6,0.00602918]
[1673316121825,33.89691029,1324.7,1324.6,0.00602918]
[1673316122000,4.61178447,1324.7,1324.6,0.00602918]
[1673316122217,4.59578447,1324.7,1324.6,0.00602918]
[1673316123058,4.59578447,1324.7,1324.6,0.00349115]
[1673316123479,6.59578447,1324.7,1324.6,0.00349115]
[1673316123804,6.61178447,1324.7,1324.6,0.00349115]
[1673316124687,7.74163965,1324.7,1324.6,0.00349115]
[1673316125062,5.74163965,1324.7,1324.6,0.00349115]
[1673316125399,4.61178447,1324.7,1324.6,0.00349115]
[1673316125604,4.59778447,1324.7,1324.6,0.00349115]
[1673316125815,4.59578447,1324.7,1324.6,0.00349115]
[1673316128208,1.699,1324.7,1324.6,7.55293115]
[1673316128450,1.699,1324.7,1324.6,0.09143794]
[1673316128621,1.699,1324.7,1324.6,0.00349115]
[1673316137671,36.1780057,1324.7,1324.6,0.00349115]
[1673316137881,49.53631127,1324.7,1324.4,0.10397551]
[1673316138110,2.82687115,1324.5,1324.4,0.10397551]
[1673316138322,17.67454179,1324.5,1324.4,0.10397551]
[1673316138512,21.79055179,1324.5,1324.4,0.10397551]
[1673316139143,29.34056179,1324.5,1324.4,0.10397551]
[1673316139760,14.24054179,1324.5,1324.4,0.10397551]
[1673316139980,6.69053179,1324.5,1324.4,0.10397551]
[1673316140628,14.24054179,1324.5,1324.4,0.10397551]
[1673316141561,14.24692326,1324.5,1324.4,0.10397551]
[1673316142432,21.79693326,1324.5,1324.4,0.10397551]
[1673316142640,29.34694326,1324.5,1324.4,0.10397551]
[1673316142855,31.03874999,1324.5,1324.4,0.10397551]
[1673316143374,29.34694326,1324.5,1324.4,0.10397551]
[1673316144988,6.69691326,1324.5,1324.4,0.10397551]
[1673316145283,15.95048718,1324.5,1324.4,0.10397551]
[1673316152620,8.40047718,1324.5,1324.4,0.10397551]
[1673316152819,15.95048718,1324.5,1324.4,0.10397551]
[1673316154123,17.07835833,1324.5,1324.4,0.10397551]
[1673316155051,8.40047718,1324.5,1324.4,0.10397551]
[1673316156240,9.52834833,1324.5,1324.4,0.10397551]
[1673316157606,8.40047718,1324.5,1324.4,0.10397551]
[1673316157981,7.82934833,1324.5,1324.4,0.10397551]
[1673316159690,15.37935833,1324.5,1324.4,0.10397551]
[1673316161190,15.37935833,1324.5,1324.4,0.10062123]
[1673316161975,22.92936833,1324.5,1324.4,0.10062123]
[1673316162881,15.37935833,1324.5,1324.4,0.10062123]
[1673316163094,7.82934833,1324.5,1324.4,0.10062123]
[1673316164233,41.32527781,1324.5,1324.4,0.10062123]
[1673316164437,41.33619291,1324.5,1324.4,0.10062123]
[1673316165287,44.33619291,1324.5,1324.4,0.10062123]
[1673316166370,44.90259291,1324.5,1324.4,0.10062123]
[1673316167070,33.85258291,1324.5,1324.4,0.10062123]
[1673316167283,39.60625612,1324.5,1324.4,0.10062123]
[1673316167493,36.7996562,1324.5,1324.4,0.10062123]
[1673316167812,44.3496662,1324.5,1324.4,0.10062123]
[1673316168053,42.6386662,1324.5,1324.4,0.10062123]
[1673316168546,39.1386662,1324.5,1324.4,0.10062123]
[1673316168909,42.6386662,1324.5,1324.4,0.10062123]
[1673316169079,42.63527385,1324.5,1324.4,0.10062123]
[1673316169629,44.32522388,1324.5,1324.4,0.10062123]
[1673316169848,33.27521388,1324.5,1324.4,0.10062123]
[1673316170165,27.99781388,1324.5,1324.4,0.10062123]
[1673316170479,22.34943965,1324.5,1324.4,0.10062123]
[1673316171325,24.03938968,1324.5,1324.4,0.10062123]
[1673316173419,31.58939968,1324.5,1324.4,0.10062123]
[1673316175057,31.59012525,1324.5,1324.4,0.10062123]
[1673316175267,30.4627156,1324.5,1324.4,0.10062123]
[1673316176270,32.71638881,1324.5,1324.4,0.10062123]
[1673316177579,31.02643878,1324.5,1324.4,0.10062123]
[1673316178834,25.16890588,1324.5,1324.4,0.10062123]
[1673316179827,10.06888588,1324.5,1324.4,0.10062123]
[1673316180066,5.14296225,1324.5,1324.4,0.10062123]
[1673316180199,3.45048515,1324.5,1324.4,7.65120123]
[1673316180528,3.38448515,1324.5,1324.4,2.62239676]
[1673316180742,3.38448515,1324.5,1324.4,0.10062123]
[1673316181144,10.93449515,1324.5,1324.4,0.10062123]
[1673316181356,12.69297225,1324.5,1324.4,0.10062123]
[1673316181566,11.56457291,1324.5,1324.4,0.10062123]
[1673316181810,12.69266704,1324.5,1324.4,0.10062123]
[1673316183061,11.56457291,1324.5,1324.4,0.10062123]
[1673316183402,12.69268816,1324.5,1324.4,0.10062123]
[1673316183713,11.56457291,1324.5,1324.4,0.10062123]
[1673316184421,19.11458291,1324.5,1324.4,0.10062123]
[1673316185377,11.56457291,1324.5,1324.4,0.10062123]
[1673316186190,19.11458291,1324.5,1324.4,0.10062123]
[1673316187922,28.91826612,1324.5,1324.4,0.10062123]
[1673316189499,28.91826612,1324.5,1324.4,0.09823128]
[1673316190632,21.36825612,1324.5,1324.4,0.09823128]
[1673316190845,28.91826612,1324.5,1324.4,0.09823128]
[1673316193273,13.81824612,1324.5,1324.4,0.09823128]
[1673316193441,28.91826612,1324.5,1324.4,0.09823128]
[1673316194325,27.22578902,1324.5,1324.4,0.09823128]
[1673316194541,28.91755722,1324.5,1324.4,0.09823128]
[1673316194698,21.36754722,1324.5,1324.4,0.09823128]
[1673316194910,13.81753722,1324.5,1324.4,0.09823128]
[1673316195477,21.36754722,1324.5,1324.4,0.09823128]
[1673316195693,11.56386401,1324.5,1324.4,0.09823128]
[1673316196063,5.14177449,1324.5,1324.4,0.09823128]
[1673316197324,3.45000629,1324.5,1324.4,0.09823128]
[1673316197538,2.25608581,1324.5,1324.4,31.53451081]
[1673316197756,2.25608581,1324.5,1324.4,36.93720517]
[1673316197966,2.25608581,1324.5,1324.4,39.74793754]
[1673316198409,0.066,1324.7,1324.4,48.09285733]
[1673316198614,3.33170766,1324.8,1324.6,1.711]
[1673316198825,1.63993946,1324.8,1324.7,7.54887]
[1673316199025,1.63993946,1324.8,1324.7,7.61484385]
[1673316199229,1.63993946,1324.8,1324.7,15.16371385]
[1673316199485,1.63993946,1324.8,1324.7,0.06597385]
[1673316199699,0.51201898,1324.8,1324.6,18.27771648]
[1673316199872,1.63993946,1324.8,1324.6,18.27771648]
[1673316200083,0.51201898,1324.8,1324.6,18.27771648]
[1673316200652,0.51201898,1324.8,1324.6,3.17959648]
[1673316200804,0.51201898,1324.8,1324.6,3.11362263]
[1673316201010,0.51201898,1324.8,1324.6,18.21217263]
[1673316201277,1.63993946,1324.8,1324.6,3.17959648]
[1673316201596,1.63993946,1324.8,1324.6,3.11362263]
[1673316201754,0.51201898,1324.8,1324.6,3.11362263]
[1673316201964,0.51201898,1324.8,1324.6,18.21234263]
[1673316202175,0.51201898,1324.8,1324.6,18.27831648]
[1673316202536,0.51201898,1324.8,1324.6,25.82775648]
[1673316202727,1.63993946,1324.8,1324.6,24.11675648]
[1673316203057,0.51201898,1324.8,1324.6,24.11675648]
[1673316204310,0.51201898,1324.8,1324.6,16.56731648]
[1673316205479,0.51201898,1324.8,1324.6,24.11675648]
[1673316205784,0.51201898,1324.8,1324.6,16.56731648]
[1673316206372,0.51201898,1324.8,1324.6,24.11675648]
[1673316206838,0.51201898,1324.8,1324.6,16.56731648]
[1673316210312,0.51201898,1324.8,1324.6,24.11675648]
[1673316212525,0.51201898,1324.8,1324.6,25.82775648]
[1673316217018,0.51201898,1324.8,1324.6,29.32775648]
[1673316217611,0.51201898,1324.8,1324.6,25.82775648]
[1673316218083,0.51201898,1324.8,1324.7,1.695]
[1673316218247,0.51201898,1324.8,1324.7,27.09388565]
[1673316218456,0.51201898,1324.8,1324.7,27.1598595]
[1673316220259,0.51201898,1324.8,1324.7,19.6109895]
[1673316220872,0.51201898,1324.8,1324.7,12.0621195]
[1673316222034,0.51201898,1324.8,1324.7,19.6109895]
[1673316222485,0.51201898,1324.8,1324.7,27.1598595]
[1673316222662,0.51201898,1324.8,1324.7,27.15623133]
[1673316223739,10.96648868,1325.1,1324.7,27.15623133]
[1673316223945,11.53268868,1325.1,1324.7,30.65623133]
[1673316224386,0.5662,1325.0,1324.7,30.65623133]
[1673316224566,0.5662,1325.0,1324.7,27.15623133]
[1673316224776,11.53268868,1325.1,1324.7,27.15623133]
[1673316225036,9.84092048,1325.1,1324.8,5.211]
[1673316225208,0.066,1325.1,1325.0,1.702]
[1673316225421,0.07851495,1325.2,1325.0,22.23332]
[1673316225672,0.07851495,1325.2,1325.0,20.59729385]
[1673316225887,0.05,1325.1,1325.0,20.59729385]
[1673316226044,0.05,1325.1,1325.0,23.59729385]
[1673316226247,0.05,1325.1,1325.0,31.13592936]
[1673316226880,0.05,1325.1,1325.0,38.68308936]
[1673316227101,0.07851495,1325.2,1325.1,2.0]
[1673316227346,0.07851495,1325.2,1325.1,26.3508]
[1673316227668,0.07851495,1325.2,1325.1,29.41677385]
[1673316227923,4.95e-06,1325.2,1325.1,51.67298432]
[1673316228198,4.95e-06,1325.2,1325.1,65.67298432]
[1673316228350,4.95e-06,1325.2,1325.1,74.65358432]
[1673316228567,4.95e-06,1325.2,1325.1,74.08738432]
[1673316231821,4.95e-06,1325.2,1325.1,74.09099831]
[1673316234282,4.95e-06,1325.2,1325.1,38.73653767]
[1673316234493,4.95e-06,1325.2,1325.1,37.75018049]
[1673316234702,4.95e-06,1325.2,1325.1,52.84338049]
[1673316238979,4.95e-06,1325.2,1325.1,60.37104113]
[1673316239254,4.95e-06,1325.2,1325.1,62.08204113]
[1673316239419,4.95e-06,1325.2,1325.1,62.83839831]
[1673316240022,4.95e-06,1325.2,1325.1,48.83839831]
[1673316240267,4.95e-06,1325.2,1325.1,62.83839831]
[1673316240651,4.95e-06,1325.2,1325.1,64.71052928]
[1673316240862,4.95e-06,1325.2,1325.1,62.83839831]
[1673316241180,4.95e-06,1325.2,1325.1,64.71053481]
[1673316241390,4.95e-06,1325.2,1325.1,62.83839831]
[1673316243911,1e-08,1325.4,1325.3,30.18184]
[1673316244118,1e-08,1325.4,1325.3,35.16099785]
[1673316247329,1e-08,1325.4,1325.3,0.06597385]
[1673316247494,1e-08,1325.4,1325.2,25.70467385]
[1673316247700,0.56610001,1325.4,1325.3,7.54546]
[1673316247912,0.56610001,1325.4,1325.3,7.61143385]
[1673316248168,1e-08,1325.4,1325.3,7.61143385]
[1673316248980,1e-08,1325.4,1325.3,15.15689385]
[1673316249957,1e-08,1325.4,1325.3,22.70235385]
[1673316253905,1e-08,1325.4,1325.3,15.15689385]
[1673316255387,1e-08,1325.4,1325.3,22.70235385]
[1673316255598,1e-08,1325.4,1325.3,26.78191224]
[1673316256684,1e-08,1325.4,1325.3,19.23645224]
[1673316257934,1e-08,1325.4,1325.3,26.78191224]
[1673316259222,1e-08,1325.4,1325.3,26.77991224]
[1673316259380,1e-08,1325.4,1325.3,19.23645224]
[1673316259576,1e-08,1325.4,1325.3,7.61143385]
[1673316260004,1e-08,1325.4,1325.3,15.15689385]
[1673316260415,1e-08,1325.4,1325.3,22.70235385]
[1673316261207,1e-08,1325.4,1325.3,15.15689385]
[1673316262239,1e-08,1325.4,1325.3,22.70235385]
[1673316263188,1e-08,1325.4,1325.3,15.15689385]
[1673316263407,1e-08,1325.4,1325.3,22.70235385]
[1673316263733,1.12792049,1325.4,1325.3,22.70235385]
[1673316263891,2.81968869,1325.4,1325.3,22.70235385]
[1673316264101,2.81968869,1325.4,1325.3,22.69963298]
[1673316264304,1.12792049,1325.4,1325.3,22.69963298]
[1673316264514,1.12792049,1325.4,1325.3,0.06325298]
[1673316264847,1.12792049,1325.4,1325.2,33.18438]
[1673316264848,2.81951806,1325.4,1325.2,25.70190298]
[1673316265657,2.81951806,1325.4,1325.2,33.24793298]
[1673316266198,1.12774986,1325.4,1325.2,42.86609536]
[1673316266407,1.12774986,1325.4,1325.2,40.05752244]
[1673316268319,1.12774986,1325.4,1325.2,41.18847686]
[1673316268924,1.12774986,1325.4,1325.3,3.87227272]
[1673316269136,1.12774986,1325.4,1325.3,18.96319272]
[1673316269363,1e-08,1325.4,1325.3,31.07789666]
[1673316269608,1e-08,1325.4,1325.3,33.88624308]
[1673316269823,1e-08,1325.4,1325.3,35.0171975]
[1673316269996,1e-08,1325.4,1325.3,35.77355468]
[1673316273370,1e-08,1325.4,1325.3,58.20955468]
[1673316273581,1e-08,1325.4,1325.3,57.07860026]
[1673316273773,1e-08,1325.4,1325.3,60.8762609]
[1673316274864,1e-08,1325.4,1325.3,68.8762609]
[1673316276750,1e-08,1325.4,1325.3,66.50568929]
[1673316277004,1e-08,1325.4,1325.3,70.00568929]
[1673316278065,1e-08,1325.4,1325.3,58.50568929]
[1673316278279,1e-08,1325.4,1325.3,70.00568929]
[1673316281762,0.08415289,1325.5,1325.4,0.00199999]
[1673316281961,0.08415289,1325.5,1325.4,29.21994271]
[1673316282171,0.08415289,1325.5,1325.4,36.50800498]
[1673316282491,0.08415289,1325.5,1325.4,34.63573226]
[1673316283645,0.08415289,1325.5,1325.4,32.92473226]
[1673316289758,0.13415289,1325.5,1325.4,32.92473226]
[1673316291810,0.08415289,1325.5,1325.4,32.92473226]
[1673316291986,0.13415289,1325.5,1325.4,34.79674372]
[1673316293577,0.13415289,1325.5,1325.4,32.92473226]
[1673316294019,0.08415289,1325.5,1325.4,3.06525297]
[1673316294185,0.08415289,1325.5,1325.4,17.00199999]
[1673316294397,0.08415289,1325.5,1325.4,17.06525297]
[1673316296375,1.21190274,1325.5,1325.4,17.06525297]
[1673316296705,0.08415289,1325.5,1325.4,17.06525297]
[1673316297396,0.08415289,1325.5,1325.4,24.61014297]
[1673316298178,0.13415289,1325.5,1325.4,39.69992297]
[1673316298961,1.26190274,1325.5,1325.4,39.69992297]
[1673316300068,1.21190274,1325.5,1325.4,39.69992297]
[1673316300280,0.08415289,1325.5,1325.4,39.69992297]
[1673316300672,1.21190274,1325.5,1325.4,39.69992297]
[1673316301008,0.08415289,1325.5,1325.4,39.69992297]
[1673316301175,0.08415289,1325.5,1325.4,32.15503297]
[1673316302022,0.08415289,1325.5,1325.4,39.69992297]
[1673316302861,0.08415289,1325.5,1325.4,32.15503297]
[1673316303859,1.21190274,1325.5,1325.4,32.15503297]
[1673316304777,1.21190274,1325.5,1325.4,39.69992297]
[1673316306035,1.21190274,1325.5,1325.4,32.15503297]
[1673316306458,1.26190274,1325.5,1325.4,32.15503297]
[1673316308316,1.21190274,1325.5,1325.4,34.02717587]
[1673316308888,2.90567094,1325.5,1325.4,39.69792297]
[1673316309053,2.90367094,1325.5,1325.4,39.69992297]
[1673316309259,1.21190274,1325.5,1325.4,39.69992297]
[1673316310471,1.21190274,1325.5,1325.4,32.15503297]
[1673316311138,1.21190274,1325.5,1325.4,34.02718985]
[1673316311307,1.21190274,1325.5,1325.4,41.57207985]
[1673316311471,1.21190274,1325.5,1325.4,34.02718985]
[1673316311682,1.21190274,1325.5,1325.4,41.57207985]
[1673316312197,1.21190274,1325.5,1325.4,34.02718985]
[1673316312667,1.21190274,1325.5,1325.4,41.57207985]
[1673316312881,1.21190274,1325.5,1325.4,34.02718985]
[1673316313097,0.08415289,1325.5,1325.4,45.84223267]
[1673316313304,0.08415289,1325.5,1325.4,48.65031052]
[1673316314550,0.08415289,1325.5,1325.4,49.77973891]
[1673316315574,1.21190274,1325.5,1325.4,48.65031052]
[1673316318353,0.08415289,1325.5,1325.4,49.77973891]
[1673316318977,0.08207601,1325.5,1325.4,51.47275829]
[1673316319194,0.08664826,1325.6,1325.5,0.00207687]
[1673316319345,0.08664826,1325.6,1325.5,25.63819608]
[1673316319554,0.08664826,1325.6,1325.5,28.79159786]
[1673316319810,0.08664826,1325.6,1325.5,32.73067804]
[1673316320554,0.7806113,1325.6,1325.5,32.73067804]
[1673316321758,0.7806113,1325.6,1325.5,36.52833868]
[1673316322133,0.7806113,1325.6,1325.5,42.47771524]
[1673316322502,0.7806113,1325.6,1325.5,38.97771524]
[1673316322712,0.7806113,1325.6,1325.5,40.78469586]
[1673316322922,0.7806113,1325.6,1325.5,37.28469586]
[1673316323166,0.7806113,1325.6,1325.5,38.97771524]
[1673316323554,0.7806113,1325.6,1325.5,37.28469586]
[1673316323758,0.7806113,1325.6,1325.5,40.78469586]
[1673316324127,0.7806113,1325.6,1325.5,37.28469586]
[1673316325711,0.7806113,1325.6,1325.5,38.97771524]
[1673316326413,0.7806113,1325.6,1325.5,37.28469586]
[1673316327687,0.7806113,1325.6,1325.5,40.28469586]
[1673316328091,0.7806113,1325.6,1325.5,41.99569586]
[1673316328703,0.7806113,1325.6,1325.5,45.49569586]
[1673316328940,0.7806113,1325.6,1325.5,43.68871524]
[1673316329286,0.012,1325.9,1325.6,3.92517087]
[1673316329445,0.08413699,1326.0,1325.9,0.95935013]
[1673316329806,0.08413699,1326.0,1325.9,23.58547013]
[1673316329992,0.64993699,1326.0,1325.9,23.64872311]
[1673316331259,0.64993699,1326.0,1325.9,1.02260311]
[1673316331446,1.67768684,1326.0,1325.9,0.95935013]
[1673316331674,0.54993699,1326.0,1325.9,0.95935013]
[1673316331899,0.54993699,1326.0,1325.9,8.50139013]
[1673316332107,0.54993699,1326.0,1325.9,1.02260311]
[1673316332317,0.54993699,1326.0,1325.9,0.95935013]
[1673316332527,1.67768684,1326.0,1325.9,0.95935013]
[1673316333165,0.54993699,1326.0,1325.9,0.95935013]
[1673316333472,1.74196941,1326.0,1325.9,0.95935013]
[1673316334192,1.74196941,1326.0,1325.9,8.50139013]
[1673316334402,1.74196941,1326.0,1325.9,8.56464311]
[1673316336134,1.74196941,1326.0,1325.9,1.02260311]
[1673316336446,1.74196941,1326.0,1325.9,0.95935013]
[1673316337026,1.74196941,1326.0,1325.9,0.95654395]
[1673316338196,1.19203242,1326.0,1325.9,0.95654395]
[1673316339031,2.31978227,1326.0,1325.9,0.95654395]
[1673316342916,1.19203242,1326.0,1325.9,8.49858395]
[1673316343276,1.19203242,1326.0,1325.9,8.56183693]
[1673316343465,1.19203242,1326.0,1325.9,16.10387693]
[1673316344695,1.19203242,1326.0,1325.9,19.22274462]
[1673316344907,1.19203242,1326.0,1325.9,26.76478462]
[1673316355860,1.19203242,1326.0,1325.9,4.13866462]
[1673316356074,2.31978227,1326.0,1325.9,0.95654395]
[1673316356278,2.31978227,1326.0,1325.9,8.49858395]
[1673316356488,2.31978227,1326.0,1325.9,16.10387693]
[1673316356830,1.19203242,1326.0,1325.9,16.10387693]
[1673316357670,2.31978227,1326.0,1325.9,16.10387693]
[1673316358619,2.31978227,1326.0,1325.9,26.76476062]
[1673316358942,1.19203242,1326.0,1325.9,26.76476062]
[1673316359628,2.31978227,1326.0,1325.9,26.76476062]
[1673316362586,2.31978227,1326.0,1325.9,1.01979693]
[1673316362796,4.01155047,1326.0,1325.9,0.95654395]
[1673316363400,4.01155047,1326.0,1325.9,8.49858395]
[1673316363658,4.01155047,1326.0,1325.9,8.56183693]